bitfinex/quotes_SOLUSD_20240613
["timestamp","ask_amount","ask_price","bid_price","bid_amount"]
[1718280667049,7.48,149.93,149.87,7.48]
[1718280667555,7.48,149.92,149.86,7.48]
[1718280667975,7.48,149.91,149.86,7.48]
[1718280670584,100.0,149.93,149.86,7.48]
[1718280670768,7.48,149.91,149.86,7.48]
[1718280671880,100.0,149.91,149.81,6.6348]
[1718280672068,100.0,149.91,149.82,7.48]
[1718280672069,7.48,149.88,149.82,7.48]
[1718280672378,7.48,149.87,149.82,7.48]
[1718280672582,7.48,149.88,149.83,7.48]
[1718280672872,7.48,149.89,149.83,7.48]
[1718280673073,7.48,149.89,149.84,7.48]
[1718280673255,100.0,149.93,149.84,7.48]
[1718280673456,29.20190236,149.94,149.86,7.48]
[1718280673787,7.48,149.92,149.86,7.48]
[1718280675275,7.48,149.9,149.85,7.48]
[1718280675467,7.48,149.9,149.83,6.4799]
[1718280675468,7.48,149.9,149.84,7.48]
[1718280676279,100.0,149.93,149.84,7.48]
[1718280676470,45.17,149.92,149.84,7.48]
[1718280677790,52.11557141,149.92,149.84,7.48]
[1718280678667,52.11557141,149.92,149.85,7.48]
[1718280679497,52.11557141,149.92,149.84,7.48]
[1718280681693,0.17,149.91,149.83,6.4799]
[1718280681913,7.48,149.87,149.8,16.2042]
[1718280682070,7.48,149.87,149.81,7.48]
[1718280682394,100.0,149.9,149.82,7.48]
[1718280682565,7.48,149.88,149.8,16.2042]
[1718280682773,7.48,149.85,149.79,6.3623]
[1718280683067,7.48,149.85,149.76,16.4698]
[1718280683068,7.48,149.83,149.76,16.4698]
[1718280683271,7.48,149.83,149.78,7.48]
[1718280683671,7.48,149.84,149.78,7.48]
[1718280684474,7.48,149.84,149.79,7.48]
[1718280685209,0.17,149.87,149.78,2.4702]
[1718280685389,7.48,149.86,149.81,7.48]
[1718280685789,7.48,149.86,149.8,7.48]
[1718280687112,7.48,149.85,149.76,16.4698]
[1718280687284,7.48,149.85,149.79,7.48]
[1718280687486,7.48,149.85,149.76,16.4698]
[1718280687796,7.48,149.85,149.79,7.48]
[1718280687995,7.48,149.85,149.76,16.4698]
[1718280688217,7.48,149.84,149.79,7.48]
[1718280688617,7.48,149.84,149.78,7.48]
[1718280688779,7.48,149.83,149.78,7.48]
[1718280690612,7.48,149.83,149.76,16.4698]
[1718280690807,7.48,149.83,149.78,7.48]
[1718280692510,7.48,149.84,149.78,7.48]
[1718280693083,7.48,149.84,149.79,7.48]
[1718280693487,7.48,149.85,149.77,2.4704]
[1718280693707,7.48,149.85,149.8,7.48]
[1718280694090,7.48,149.85,149.79,7.48]
[1718280695100,7.48,149.84,149.79,7.48]
[1718280695414,7.48,149.83,149.76,16.4698]
[1718280695623,7.48,149.83,149.78,7.48]
[1718280703534,7.48,149.84,149.78,7.48]
[1718280706120,106.94723933,149.86,149.78,7.48]
[1718280706321,45.17,149.85,149.78,7.48]
[1718280708922,100.17,149.84,149.78,7.48]
[1718280709107,100.17,149.84,149.76,16.4698]
[1718280709311,107.11794904,149.84,149.77,7.48]
[1718280712107,107.11794904,149.84,149.76,16.4698]
[1718280712435,107.11794904,149.84,149.75,13.8423]
[1718280712436,7.48,149.8,149.75,13.8423]
[1718280719033,106.94864033,149.82,149.75,13.8423]
[1718280719250,7.48,149.8,149.75,13.8423]
[1718280725541,7.48,149.8,149.75,6.3623]
[1718280725768,7.48,149.8,149.75,13.8423]
[1718280725935,7.48,149.8,149.75,6.3623]
[1718280726328,0.17,149.81,149.75,6.3623]
[1718280726521,7.48,149.8,149.75,6.3623]
[1718280729952,45.34,149.81,149.75,6.3623]
[1718280730156,7.48,149.8,149.75,13.8423]
[1718280730333,6.94864033,149.82,149.77,7.48]
[1718280730656,7.48,149.84,149.78,7.48]
[1718280730832,106.94799623,149.86,149.79,7.48]
[1718280731028,7.48,149.85,149.79,7.48]
[1718280731347,23.4043,149.87,149.78,2.4702]
[1718280731544,7.48,149.87,149.81,7.48]
[1718280732254,7.48,149.88,149.82,7.48]
[1718280733630,7.48,149.88,149.83,7.48]
[1718280734431,7.48,149.89,149.83,7.48]
[1718280734833,7.48,149.89,149.84,7.48]
[1718280735038,274.32739224,149.9,149.84,7.48]
[1718280735863,266.84739224,149.9,149.84,7.48]
[1718280736026,267.38,149.9,149.84,7.48]
[1718280736343,267.38,149.9,149.81,22.4193]
[1718280736552,259.9,149.9,149.82,0.17]
[1718280736837,267.38,149.9,149.82,0.17]
[1718280737049,259.9,149.9,149.82,0.17]
[1718280737361,267.38,149.9,149.82,0.17]
[1718280737940,259.9,149.9,149.82,0.17]
[1718280738774,267.38,149.9,149.81,22.4193]
[1718280739149,7.48,149.89,149.81,22.4193]
[1718280740563,7.48,149.9,149.81,22.4193]
[1718280741153,7.48,149.9,149.82,0.17]
[1718280741874,23.54570229,149.91,149.82,0.17]
[1718280742178,31.02570229,149.91,149.85,7.48]
[1718280742467,6.95420229,149.91,149.86,7.48]
[1718280742676,7.48,149.91,149.86,7.48]
[1718280743084,7.48,149.92,149.86,7.48]
[1718280743639,7.48,149.91,149.82,0.34]
[1718280743878,7.48,149.91,149.86,7.48]
[1718280746356,7.48,149.91,149.82,0.34]
[1718280746559,7.48,149.91,149.86,7.48]
[1718280747069,7.48,149.92,149.86,7.48]
[1718280747572,6.95349844,149.93,149.86,23.0252]
[1718280747759,7.48,149.95,149.9,7.48]
[1718280747960,7.48,149.94,149.86,23.0252]
[1718280748162,7.48,149.93,149.88,7.48]
[1718280748344,7.48,149.93,149.87,7.48]
[1718280748886,7.48,149.93,149.88,7.48]
[1718280749186,7.48,149.93,149.86,23.0252]
[1718280749353,7.48,149.93,149.88,7.48]
[1718280749750,7.48,149.94,149.88,7.48]
[1718280750059,6.95202946,149.96,149.88,7.48]
[1718280750259,7.48,149.95,149.89,7.48]
[1718280750879,7.48,149.96,149.87,0.17]
[1718280751051,7.48,149.96,149.9,7.48]
[1718280753673,106.95167864,149.98,149.86,23.0252]
[1718280753674,7.48,149.92,149.86,23.0252]
[1718280753858,7.48,149.92,149.86,30.5052]
[1718280754674,22.7515,149.94,149.88,7.48]
[1718280755180,15.2715,149.94,149.88,7.48]
[1718280755475,15.2715,149.94,149.89,7.48]
[1718280755476,7.48,149.94,149.89,7.48]
[1718280756157,22.22317864,149.98,149.89,7.48]
[1718280756158,7.48,149.95,149.89,7.48]
[1718280756863,22.22317864,149.98,149.91,7.48]
[1718280757068,15.2715,149.98,149.92,7.48]
[1718280757264,22.7515,149.98,149.92,7.48]
[1718280758074,15.2715,149.98,149.92,7.48]
[1718280758279,22.7515,149.98,149.92,7.48]
[1718280759067,22.7515,149.98,149.88,2.6385]
[1718280759381,22.7515,149.98,149.93,7.48]
[1718280759882,7.48,149.98,149.93,7.48]
[1718280760091,7.48,149.99,149.93,7.48]
[1718280760862,7.48,149.99,149.94,7.48]
[1718280762983,7.48,149.98,149.93,7.48]
[1718280765284,7.48,149.99,149.93,7.48]
[1718280765488,106.94977088,150.01,149.93,7.48]
[1718280765664,6.94977088,150.01,149.94,7.48]
[1718280765983,7.48,150.0,149.94,7.48]
[1718280766294,7.48,149.99,149.94,7.48]
[1718280767570,6.94977088,150.01,149.94,7.48]
[1718280767776,7.48,150.01,149.95,7.48]
[1718280772974,16.4498,150.02,149.97,7.48]
[1718280781399,15.568,150.06,149.95,0.17]
[1718280781573,7.48,150.05,149.99,7.48]
[1718280782880,7.48,150.04,149.99,7.48]
[1718280783214,7.48,150.04,149.95,20.34]
[1718280783507,7.48,150.03,149.97,7.48]
[1718280783895,15.568,150.06,149.96,22.3986]
[1718280784197,15.568,150.06,150.01,7.48]
[1718280784885,23.048,150.06,150.01,7.48]
[1718280785523,15.568,150.06,150.01,7.48]
[1718280787507,16.4542,150.1,150.03,7.48]
[1718280787681,7.48,150.09,150.03,7.48]
[1718280788093,7.48,150.09,150.04,7.48]
[1718280788493,23.40866366,150.1,150.02,0.17]
[1718280788698,23.40866366,150.1,150.06,7.48]
[1718280788909,23.40866366,150.1,150.05,7.48]
[1718280789213,30.88866366,150.1,150.05,7.48]
[1718280790296,30.88866366,150.1,150.01,51.382]
[1718280790517,23.40866366,150.1,150.02,0.17]
[1718280790718,30.88866366,150.1,150.02,0.68]
[1718280791717,16.4542,150.1,150.02,45.68]
[1718280792517,16.4542,150.1,150.02,48.1463]
[1718280792914,16.4542,150.1,150.02,45.68]
[1718280793518,23.9342,150.1,150.02,45.68]
[1718280794424,16.4542,150.1,150.02,45.68]
[1718280796397,0.804936,150.12,150.02,45.68]
[1718280796598,0.804936,150.12,150.09,7.48]
[1718280796929,0.804936,150.12,150.1,7.48]
[1718280797798,0.804936,150.12,150.09,7.48]
[1718280800222,0.804936,150.12,150.05,2.4657]
[1718280800430,0.804936,150.12,150.08,7.48]
[1718280802412,0.804936,150.12,150.05,0.17]
[1718280802609,8.284936,150.12,150.05,20.0]
[1718280802815,8.284936,150.12,150.03,22.4661]
[1718280802816,8.284936,150.12,150.07,7.48]
[1718280803116,0.804936,150.12,150.07,7.48]
[1718280803624,0.804936,150.12,150.08,7.48]
[1718280804027,0.804936,150.12,150.09,7.48]
[1718280805714,0.804936,150.12,150.05,2.4657]
[1718280805715,0.804936,150.12,150.08,7.48]
[1718280806114,0.804936,150.12,150.09,7.48]
[1718280806326,0.804936,150.12,150.1,7.48]
[1718280807417,0.804936,150.12,150.08,7.48]
[1718280807627,0.804936,150.12,150.11,7.48]
[1718280809811,0.804936,150.12,150.11,7.99]
[1718280810010,0.804936,150.12,150.11,75.6248]
[1718280810431,0.804936,150.12,150.11,73.16]
[1718280811022,0.804936,150.12,150.11,75.6248]
[1718280811338,0.804936,150.12,150.11,87.949]
[1718280811541,646.2,150.22,150.16,0.17]
[1718280811724,22.2686,150.25,150.2,7.48]
[1718280811924,22.2686,150.25,150.21,7.48]
[1718280812139,0.804936,150.27,150.21,7.48]
[1718280812440,0.804936,150.27,150.24,7.48]
[1718280812825,0.804936,150.27,150.25,7.48]
[1718280814038,0.804936,150.27,150.2,0.68]
[1718280814243,7.48,150.26,150.19,20.0]
[1718280814446,7.48,150.26,150.2,7.48]
[1718280814820,0.804936,150.27,150.22,7.48]
[1718280815035,0.804936,150.27,150.25,7.48]
[1718280816228,0.804936,150.27,150.2,0.17]
[1718280816424,0.804936,150.27,150.2,45.51]
[1718280816647,0.804936,150.27,150.24,7.48]
[1718280816825,0.804936,150.27,150.19,22.4634]
[1718280816826,0.804936,150.27,150.19,20.0]
[1718280817032,0.804936,150.27,150.24,7.48]
[1718280817245,0.804936,150.27,150.23,7.48]
[1718280817949,0.804936,150.27,150.19,20.0]
[1718280818131,0.804936,150.27,150.22,7.48]
[1718280818325,0.804936,150.27,150.2,0.17]
[1718280818630,8.284936,150.27,150.21,7.48]
[1718280820046,0.804936,150.27,150.21,7.48]
[1718280820254,8.284936,150.27,150.22,7.48]
[1718280820558,0.804936,150.27,150.23,7.48]
[1718280822232,0.804936,150.27,150.24,7.48]
[1718280822951,0.804936,150.27,150.23,7.48]
[1718280823533,0.804936,150.27,150.24,7.48]
[1718280823736,0.804936,150.27,150.25,7.48]
[1718280823944,0.804936,150.27,150.24,7.48]
[1718280825747,0.804936,150.27,150.25,7.48]
[1718280825945,0.804936,150.27,150.26,7.48]
[1718280827143,0.804936,150.27,150.26,7.65]
[1718280827457,0.804936,150.27,150.26,53.16]
[1718280827755,0.804936,150.27,150.26,7.82]
[1718280827947,0.804936,150.27,150.26,7.48]
[1718280828841,0.804936,150.27,150.23,15.6217]
[1718280829056,0.804936,150.27,150.21,2.4631]
[1718280829265,0.804936,150.27,150.24,7.48]
[1718280829558,0.804936,150.27,150.25,7.48]
[1718280829968,0.804936,150.27,150.26,7.48]
[1718280830648,0.804936,150.27,150.26,7.65]
[1718280830847,0.804936,150.27,150.26,10.4523]
[1718280831046,0.804936,150.27,150.26,73.16]
[1718280831667,0.804936,150.27,150.26,27.99]
[1718280831853,0.804936,150.27,150.26,75.6223]
[1718280832846,0.804936,150.27,150.26,68.1423]
[1718280840655,0.804936,150.27,150.26,80.4541]
[1718280840856,0.804936,150.27,150.26,90.3036]
[1718280841870,0.804936,150.27,150.26,68.1423]
[1718280842066,0.804936,150.27,150.24,6.1617]
[1718280842375,0.804936,150.27,150.25,2.4624]
[1718280843072,0.804936,150.27,150.26,2.4623]
[1718280843256,0.804936,150.27,150.24,6.1617]
[1718280843578,0.804936,150.27,150.25,68.1424]
[1718280844175,0.804936,150.27,150.26,2.4623]
[1718280844378,0.804936,150.27,150.26,3.1423]
[1718280844684,0.804936,150.27,150.26,0.68]
[1718280845453,0.804936,150.27,150.26,0.51]
[1718280847155,0.804936,150.27,150.26,0.17]
[1718280847652,0.804936,150.27,150.26,0.51]
[1718280848066,0.804936,150.27,150.26,23.1423]
[1718280848377,0.804936,150.27,150.26,68.1423]
[1718280848875,0.804936,150.27,150.26,115.8036]
[1718280850188,3.6e-05,150.27,150.26,115.8036]
[1718280850385,16.4961,150.36,150.31,2.4614]
[1718280850562,16.4961,150.36,150.32,0.34]
[1718280850987,16.4961,150.36,150.3,20.0]
[1718280851458,16.4961,150.36,150.31,45.17]
[1718280851664,16.4961,150.36,150.32,0.17]
[1718280852584,16.4961,150.36,150.3,0.34]
[1718280852889,16.4961,150.36,150.3,20.34]
[1718280853185,16.4961,150.36,150.29,0.17]
[1718280853559,16.4961,150.36,150.29,0.34]
[1718280853762,16.4961,150.36,150.3,0.17]
[1718280854180,16.4961,150.36,150.29,0.17]
[1718280854683,16.4961,150.36,150.3,0.17]
[1718280854986,16.4961,150.36,150.32,8.5]
[1718280857161,16.4961,150.36,150.33,8.5]
[1718280858190,16.4961,150.36,150.34,8.5]
[1718280859397,16.4961,150.36,150.33,8.5]
[1718280860366,16.4961,150.36,150.34,8.5]
[1718280862193,16.4961,150.36,150.35,8.5]
[1718280863680,16.4961,150.36,150.34,8.5]
[1718280866189,16.4961,150.36,150.33,8.5]
[1718280867109,16.4961,150.36,150.29,20.0]
[1718280867267,16.4961,150.36,150.24,5.35675193]
[1718280867472,16.4961,150.36,150.25,8.7432]
[1718280867473,8.5,150.35,150.25,8.7432]
[1718280867697,8.5,150.35,150.29,8.5]
[1718280868701,8.5,150.35,150.3,8.5]
[1718280870271,16.4961,150.36,150.31,8.5]
[1718280870470,16.4961,150.36,150.33,8.5]
[1718280872495,16.4961,150.36,150.32,8.5]
[1718280872796,16.4961,150.36,150.3,8.5]
[1718280872797,24.9961,150.36,150.3,8.5]
[1718280873301,24.9961,150.36,150.26,2.4623]
[1718280873481,8.5,150.35,150.3,8.5]
[1718280874195,24.9961,150.36,150.31,8.5]
[1718280874396,16.4961,150.36,150.32,8.5]
[1718280874599,16.4961,150.36,150.26,20.0]
[1718280874797,16.4961,150.36,150.31,8.5]
[1718280874989,24.9961,150.36,150.3,8.5]
[1718280875184,24.9961,150.36,150.26,22.4622]
[1718280875498,16.4961,150.36,150.29,8.5]
[1718280875695,24.9961,150.36,150.3,8.5]
[1718280876491,24.9961,150.36,150.31,8.5]
[1718280877389,16.4961,150.36,150.31,8.5]
[1718280877887,24.9961,150.36,150.28,0.17]
[1718280878088,8.5,150.35,150.29,8.5]
[1718280878707,8.5,150.35,150.3,8.5]
[1718280880187,16.4961,150.36,150.3,8.5]
[1718280880399,8.5,150.35,150.3,8.5]
[1718280882008,16.4961,150.36,150.3,8.5]
[1718280882195,24.9961,150.36,150.3,8.5]
[1718280883319,16.4961,150.36,150.31,8.5]
[1718280885318,16.4961,150.36,150.32,8.5]
[1718280885609,16.4961,150.36,150.34,8.5]
[1718280886219,16.4961,150.36,150.35,8.5]
[1718280887020,15.4564,150.4,150.35,8.5]
[1718280887521,15.4564,150.4,150.36,8.5]
[1718280888595,15.4564,150.4,150.35,8.5]
[1718280889614,15.4564,150.4,150.31,2.6314]
[1718280889822,15.4564,150.4,150.35,8.5]
[1718280893919,8.5,150.38,150.29,0.17]
[1718280894118,8.5,150.38,150.32,8.5]
[1718280894724,8.5,150.38,150.29,0.68]
[1718280894938,8.5,150.38,150.32,8.5]
[1718280895429,8.5,150.36,150.31,8.5]
[1718280896429,8.5,150.37,150.31,8.5]
[1718280897111,6.94569894,150.39,150.32,8.5]
[1718280897310,8.5,150.37,150.32,8.5]
[1718280897623,15.4564,150.4,150.32,8.5]
[1718280897826,8.5,150.38,150.32,8.5]
[1718280898941,8.5,150.38,150.3,0.17]
[1718280899107,8.5,150.38,150.32,8.5]
[1718280899624,8.5,150.37,150.3,0.34]
[1718280899814,8.5,150.37,150.31,8.5]
[1718280900015,8.5,150.38,150.32,8.5]
[1718280900407,15.4564,150.4,150.31,2.6315]
[1718280900623,23.9564,150.4,150.34,8.5]
[1718280901513,15.4564,150.4,150.36,8.5]
[1718280902026,8.5,150.38,150.3,20.0]
[1718280902230,8.5,150.38,150.32,8.5]
[1718280902918,8.5,150.39,150.33,8.5]
[1718280903121,15.4564,150.4,150.35,8.5]
[1718280903122,23.9564,150.4,150.35,8.5]
[1718280903432,15.4564,150.4,150.36,8.5]
[1718280904132,15.4564,150.4,150.35,8.5]
[1718280906530,8.5,150.37,150.27,8.6567]
[1718280906722,8.5,150.37,150.27,6.1946]
[1718280907023,15.4564,150.4,150.27,18.5054]
[1718280907216,8.5,150.37,150.32,8.5]
[1718280907420,8.5,150.37,150.29,2.4618]
[1718280907731,8.5,150.37,150.28,2.462]
[1718280907934,8.5,150.36,150.28,20.0]
[1718280908114,22.0829,150.35,150.23,21.85715991]
[1718280908428,8.5,150.33,150.27,8.5]
[1718280908628,22.0829,150.35,150.26,2.4623]
[1718280908801,30.5829,150.35,150.3,8.5]
[1718280909409,15.5786,150.35,150.3,8.5]
[1718280909627,15.5786,150.35,150.27,2.4621]
[1718280909829,15.5786,150.35,150.32,8.5]
[1718280910033,15.5786,150.35,150.31,8.5]
[1718280910326,15.4666,150.39,150.35,2.4609]
[1718280910510,259.9,150.41,150.38,8.5]
[1718280910710,0.804936,150.42,150.36,0.51]
[1718280910711,0.804936,150.42,150.4,8.5]
[1718280912013,9.304936,150.42,150.32,15.6561]
[1718280912224,0.804936,150.42,150.37,8.5]
[1718280912411,0.804936,150.42,150.39,8.5]
[1718280914928,0.804936,150.42,150.33,47.9711]
[1718280915108,0.804936,150.42,150.34,20.17]
[1718280915310,0.804936,150.42,150.37,8.5]
[1718280915512,9.304936,150.42,150.37,8.5]
[1718280917619,0.804936,150.42,150.37,8.5]
[1718280917815,0.804936,150.42,150.38,8.5]
[1718280920225,0.804936,150.42,150.34,20.17]
[1718280920544,0.804936,150.42,150.38,8.5]
[1718280924950,0.804936,150.42,150.34,20.0]
[1718280925136,8.5,150.41,150.33,0.17]
[1718280925333,8.5,150.41,150.36,8.5]
[1718280925643,7.190036,150.42,150.36,8.5]
[1718280925852,7.190036,150.42,150.37,8.5]
[1718280926161,7.190036,150.42,150.38,8.5]
[1718280926826,15.690036,150.42,150.32,2.4613]
[1718280927049,8.5,150.41,150.36,8.5]
[1718280927741,7.190036,150.42,150.32,36.4613]
[1718280927920,15.690036,150.42,150.36,8.5]
[1718280928126,15.690036,150.42,150.37,8.5]
[1718280928950,15.690036,150.42,150.32,34.0]
[1718280929152,15.690036,150.42,150.31,20.0]
[1718280929153,8.5,150.4,150.31,20.0]
[1718280929365,8.5,150.4,150.34,8.5]
[1718280930933,8.5,150.4,150.28,2.4619]
[1718280930934,8.5,150.36,150.28,2.4619]
[1718280931229,8.5,150.36,150.3,8.5]
[1718280931431,14.7404,150.36,150.3,8.5]
[1718280931656,6.2404,150.36,150.3,8.5]
[1718280931861,8.5,150.35,150.29,8.5]
[1718280932424,6.2404,150.36,150.3,8.5]
[1718280932733,14.7404,150.36,150.3,8.5]
[1718280933133,6.2404,150.36,150.31,8.5]
[1718280933480,16.4074,150.39,150.35,8.5]
[1718280933754,16.4074,150.39,150.36,8.5]
[1718280934134,16.4074,150.39,150.35,8.5]
[1718280934758,24.9074,150.39,150.27,14.7728]
[1718280934957,24.9074,150.39,150.33,8.5]
[1718280935555,8.5,150.38,150.33,8.5]
[1718280936353,24.9074,150.39,150.33,8.5]
[1718280939479,24.9074,150.39,150.34,8.5]
[1718280940859,16.4074,150.39,150.28,68.1419]
[1718280941064,8.5,150.38,150.33,8.5]
[1718280941390,24.9074,150.39,150.33,8.5]
[1718280943290,24.9074,150.39,150.34,8.5]
[1718280944099,16.4074,150.39,150.34,8.5]
[1718280946695,16.4074,150.39,150.36,8.5]
[1718280947009,16.4074,150.39,150.37,8.5]
[1718280947509,0.804936,150.42,150.33,0.17]
[1718280947805,0.804936,150.42,150.39,8.5]
[1718280948006,0.804936,150.42,150.4,8.5]
[1718280949392,0.804936,150.42,150.41,8.5]
[1718280950003,0.804936,150.42,150.41,54.01]
[1718280950192,0.804936,150.42,150.41,56.6399]
[1718280950809,0.804936,150.42,150.41,48.1399]
[1718280951903,0.14346643,150.42,150.41,68.1399]
[1718280952820,0.14346643,150.42,150.41,65.68]
[1718280953238,0.14346643,150.42,150.41,20.0]
[1718280953417,0.14346643,150.42,150.39,27.9002]
[1718280953596,0.14346643,150.42,150.4,20.0]
[1718280954631,0.14346643,150.42,150.41,0.68]
[1718280955727,0.14346643,150.42,150.41,45.68]
[1718280955931,0.14346643,150.42,150.41,65.68]
[1718280956831,0.14346643,150.42,150.41,20.51]
[1718280957130,0.14346643,150.42,150.37,6.3814]
[1718280957633,0.14346643,150.42,150.36,43.7765]
[1718280957831,0.14346643,150.42,150.36,41.3158]
[1718280958330,0.14346643,150.42,150.36,25.44]
[1718280958536,0.14346643,150.42,150.34,2.4609]
[1718280959628,0.14346643,150.42,150.32,2.4613]
[1718280959922,0.14346643,150.42,150.31,2.4615]
[1718280960302,0.14346643,150.42,150.3,27.9016]
[1718280960303,100.14346643,150.42,150.3,27.9016]
[1718280960506,100.14346643,150.42,150.3,2.4616]
[1718280960733,100.14346643,150.42,150.27,4.9243]
[1718280961043,6.1656,150.41,150.28,25.44]
[1718280961222,6.1656,150.41,150.3,7.3849]
[1718280961536,6.1656,150.41,150.33,2.4611]
[1718280962019,6.1656,150.41,150.33,0.17]
[1718280963714,6.1656,150.41,150.35,2.4608]
[1718280964042,0.14346643,150.42,150.36,2.8006]
[1718280964211,0.14346643,150.42,150.36,2.9706]
[1718280964408,0.14346643,150.42,150.36,0.51]
[1718280964630,0.14346643,150.42,150.37,2.4605]
[1718280964818,0.14346643,150.42,150.38,0.34]
[1718280965329,0.14346643,150.42,150.38,0.17]
[1718280965628,0.14346643,150.42,150.37,0.17]
[1718280965629,0.14346643,150.42,150.37,0.34]
[1718280966223,0.14346643,150.42,150.39,0.17]
[1718280966426,0.14346643,150.42,150.39,0.51]
[1718280966611,0.14346643,150.42,150.41,2.4599]
[1718280966932,0.14346643,150.42,150.41,65.68]
[1718280967129,0.14346643,150.42,150.41,68.1399]
[1718280973458,0.14346643,150.42,150.41,73.0597]
[1718280973747,0.14346643,150.42,150.41,90.2792]
[1718280974918,15.9172,150.51,150.44,0.17]
[1718280975123,15.9172,150.51,150.46,0.17]
[1718280975317,15.9172,150.51,150.46,20.51]
[1718280976039,15.9172,150.51,150.47,45.0]
[1718280977019,15.9172,150.51,150.46,20.51]
[1718280977645,15.9172,150.51,150.4,36.3853]
[1718280977816,15.9172,150.51,150.42,2.4596]
[1718280978019,15.9172,150.51,150.43,0.17]
[1718280978721,15.9172,150.51,150.41,0.17]
[1718280979051,6.429,150.5,150.4,25.44]
[1718280979238,6.429,150.5,150.37,25.44]
[1718280979547,15.4556,150.49,150.37,25.44]
[1718280979749,15.4556,150.49,150.38,2.4604]
[1718280980443,15.4556,150.49,150.37,25.44]
[1718280980631,115.4556,150.49,150.33,4.9222]
[1718280980939,45.0,150.48,150.35,2.4608]
[1718280981556,45.0,150.48,150.36,2.4607]
[1718280981856,115.4556,150.49,150.36,2.4607]
[1718280982340,15.4556,150.49,150.35,20.0]
[1718280982540,15.4556,150.49,150.38,2.4603]
[1718280982720,15.4556,150.49,150.37,22.4605]
[1718280983623,15.4556,150.49,150.38,0.68]
[1718280984451,100.0,150.48,150.37,20.0]
[1718280986754,15.4556,150.49,150.37,22.4605]
[1718280987149,15.4556,150.49,150.38,0.17]
[1718280987325,15.4556,150.49,150.4,2.63]
[1718280987529,15.4556,150.49,150.4,2.46]
[1718280987747,15.4556,150.49,150.4,0.17]
[1718280987931,15.4556,150.49,150.4,0.68]
[1718280988532,15.4556,150.49,150.4,3.14]
[1718280988852,15.4556,150.49,150.39,20.0]
[1718280989150,100.0,150.48,150.35,27.9007]
[1718280989455,100.0,150.48,150.35,25.44]
[1718280990126,100.0,150.48,150.35,27.9008]
[1718280990450,100.0,150.48,150.36,0.17]
[1718280990637,100.0,150.48,150.36,0.51]
[1718280991958,100.0,150.48,150.36,2.9707]
[1718280992449,15.4556,150.49,150.37,0.17]
[1718280992644,15.4556,150.49,150.39,2.4601]
[1718280993046,15.4556,150.49,150.4,0.34]